bitfinex/quotes_BTCUSD_20240908
["timestamp","ask_amount","ask_price","bid_price","bid_amount"]
[1725779353621,0.128318,54552.0,54550.0,0.00363]
[1725779354501,0.128318,54552.0,54550.0,0.00263]
[1725779355213,0.128318,54552.0,54550.0,0.00363]
[1725779355431,0.128318,54552.0,54550.0,0.00263]
[1725779356646,0.128318,54552.0,54550.0,0.00363]
[1725779356890,0.128316,54553.0,54550.0,0.00263]
[1725779357115,0.128318,54552.0,54550.0,0.00163]
[1725779357850,0.15706464,54552.0,54550.0,0.00163]
[1725779358276,0.129318,54552.0,54550.0,0.00163]
[1725779359154,0.001,54552.0,54550.0,0.00163]
[1725779360040,0.12832,54551.0,54550.0,0.00163]
[1725779360263,0.825979,54551.0,54550.0,0.00163]
[1725779361186,0.513459,54551.0,54550.0,0.00163]
[1725779361421,0.000815,54552.0,54550.0,0.00163]
[1725779361642,0.02874872,54551.0,54550.0,0.00163]
[1725779363176,0.02874872,54551.0,54550.0,0.06223]
[1725779363625,0.02874872,54551.0,54550.0,0.06323]
[1725779364114,0.02874872,54551.0,54550.0,0.06523]
[1725779364385,0.05538923,54551.0,54550.0,0.06923]
[1725779364837,0.05538923,54551.0,54550.0,0.06623]
[1725779365064,0.05538923,54551.0,54550.0,0.06223]
[1725779365977,0.05538923,54551.0,54550.0,0.190552]
[1725779366195,0.02664051,54551.0,54550.0,0.191552]
[1725779366467,0.02664051,54551.0,54550.0,0.192552]
[1725779366690,0.000815,54552.0,54550.0,0.192552]
[1725779366917,0.000815,54552.0,54551.0,0.0785]
[1725779367371,0.02806843,54552.0,54551.0,0.0785]
[1725779367810,0.000815,54552.0,54551.0,0.0785]
[1725779368271,0.000815,54552.0,54551.0,0.0805]
[1725779369319,0.02956236,54552.0,54551.0,0.0805]
[1725779369778,0.05702295,54552.0,54551.0,0.0815]
[1725779370283,0.05702295,54552.0,54551.0,0.0805]
[1725779370505,0.05702295,54552.0,54551.0,0.0825]
[1725779372824,0.05702295,54552.0,54551.0,0.0805]
[1725779373246,0.05702295,54552.0,54551.0,0.0795]
[1725779373661,0.05702295,54552.0,54551.0,0.0805]
[1725779376131,0.02827559,54552.0,54551.0,0.0795]
[1725779376558,0.02827559,54552.0,54551.0,0.0815]
[1725779377034,0.02827559,54552.0,54551.0,0.0805]
[1725779377248,0.02827559,54552.0,54551.0,0.0825]
[1725779377457,0.02827559,54552.0,54551.0,0.0805]
[1725779377871,0.02827559,54552.0,54551.0,0.0795]
[1725779378810,0.27580079,54561.0,54559.0,0.01]
[1725779378811,0.13755801,54560.0,54559.0,0.01]
[1725779379019,0.13836801,54577.0,54569.0,0.128277]
[1725779379273,0.00081,54577.0,54569.0,0.782787]
[1725779379491,0.02873452,54573.0,54569.0,0.782787]
[1725779379749,0.02873452,54573.0,54569.0,1.039342]
[1725779379970,0.02873452,54573.0,54569.0,0.782787]
[1725779381042,0.00081,54577.0,54569.0,0.796787]
[1725779381671,0.00081,54577.0,54569.0,1.053342]
[1725779382133,0.00081,54577.0,54569.0,0.796787]
[1725779382575,0.02872944,54573.0,54569.0,0.796787]
[1725779383015,0.02872944,54573.0,54569.0,0.782787]
[1725779383315,0.02872944,54573.0,54569.0,1.053342]
[1725779383527,0.02872944,54573.0,54569.0,1.067342]
[1725779383742,0.02872944,54573.0,54569.0,1.039342]
[1725779383950,0.02872944,54573.0,54569.0,1.067342]
[1725779384372,0.02872944,54573.0,54569.0,1.053342]
[1725779384573,0.02872944,54573.0,54569.0,1.039342]
[1725779384788,0.02872944,54573.0,54569.0,1.067342]
[1725779386128,0.02872944,54573.0,54569.0,1.053342]
[1725779386565,0.00081,54577.0,54569.0,1.053342]
[1725779386989,0.00081,54577.0,54569.0,1.067342]
[1725779387220,0.00081,54577.0,54569.0,1.053342]
[1725779387461,0.00081,54577.0,54569.0,1.067342]
[1725779387890,0.00081,54577.0,54569.0,1.039342]
[1725779389211,0.00081,54577.0,54569.0,1.053342]
[1725779389440,0.00081,54577.0,54569.0,1.067342]
[1725779389716,0.00081,54577.0,54569.0,1.053342]
[1725779389956,0.02872824,54575.0,54569.0,1.053342]
[1725779390180,0.02872824,54575.0,54569.0,1.067342]
[1725779390831,0.02872824,54575.0,54569.0,1.039342]
[1725779391064,0.02872824,54575.0,54569.0,1.067342]
[1725779391556,0.00081,54577.0,54569.0,1.067342]
[1725779391769,0.00081,54577.0,54569.0,0.810787]
[1725779392437,0.00081,54577.0,54569.0,0.796787]
[1725779393548,0.00081,54577.0,54569.0,0.782787]
[1725779393761,0.00081,54577.0,54569.0,0.810787]
[1725779394214,0.00081,54577.0,54569.0,0.782787]
[1725779394455,0.00081,54577.0,54569.0,0.796787]
[1725779394661,0.00081,54577.0,54569.0,0.782787]
[1725779395131,0.00081,54577.0,54569.0,1.039342]
[1725779395350,0.02954013,54577.0,54569.0,1.039342]
[1725779395812,0.02954013,54577.0,54569.0,1.053342]
[1725779396057,0.00081,54577.0,54569.0,1.067342]
[1725779396263,0.02873359,54572.0,54569.0,1.067342]
[1725779396481,0.02873359,54572.0,54569.0,1.053342]
[1725779396701,0.02873359,54572.0,54569.0,1.067342]
[1725779399859,0.02873359,54572.0,54569.0,1.323897]
[1725779400096,0.00081,54577.0,54569.0,1.323897]
[1725779402633,0.00081,54577.0,54576.0,0.89783]
[1725779402909,0.00081,54577.0,54576.0,1.3045412]
[1725779403129,0.00081,54577.0,54576.0,1.5710642]
[1725779403377,0.02971541,54589.0,54588.0,1.049331]
[1725779403601,0.00098581,54589.0,54588.0,1.049331]
[1725779403878,0.00098581,54589.0,54588.0,1.305797]
[1725779404105,0.00098581,54589.0,54588.0,1.151331]
[1725779404330,0.00098581,54589.0,54588.0,1.149331]
[1725779404784,0.00098581,54589.0,54588.0,1.139331]
[1725779405005,0.00098581,54589.0,54588.0,1.153331]
[1725779405881,0.00098581,54589.0,54588.0,1.167331]
[1725779406347,0.00098581,54589.0,54588.0,1.153331]
[1725779407307,0.00098581,54589.0,54588.0,1.167331]
[1725779407515,0.00098581,54589.0,54588.0,1.153331]
[1725779407957,0.00098581,54589.0,54588.0,1.167331]
[1725779408200,0.00098581,54589.0,54588.0,1.139331]
[1725779408432,0.00098581,54589.0,54588.0,1.153331]
[1725779408943,0.00098581,54589.0,54588.0,1.139331]
[1725779409375,0.00098581,54589.0,54588.0,1.153331]
[1725779409610,0.00098581,54589.0,54588.0,1.167331]
[1725779409611,0.00180081,54589.0,54588.0,1.167331]
[1725779409861,0.00180081,54589.0,54588.0,0.910865]
[1725779410079,0.00180081,54589.0,54588.0,0.896865]
[1725779410291,0.00180081,54589.0,54588.0,0.910865]
[1725779410504,0.00180081,54589.0,54588.0,0.896865]
[1725779411193,0.00180081,54589.0,54588.0,1.167331]
[1725779411409,0.00180081,54589.0,54588.0,1.153331]
[1725779411617,0.00180081,54589.0,54588.0,1.139331]
[1725779412047,0.00180081,54589.0,54588.0,1.153331]
[1725779412717,0.00180081,54589.0,54588.0,1.139331]
[1725779412944,0.00180081,54589.0,54588.0,1.153331]
[1725779413391,0.00180081,54589.0,54588.0,1.167331]
[1725779418445,0.00180081,54589.0,54588.0,1.423797]
[1725779419113,0.00180081,54589.0,54588.0,1.167331]
[1725779420258,0.00180081,54589.0,54588.0,1.423797]
[1725779420470,0.00180081,54589.0,54588.0,1.433797]
[1725779420686,0.00082,54607.0,54588.0,1.433797]
[1725779420687,0.55430836,54603.0,54602.0,0.3185]
[1725779420935,0.55430836,54616.0,54610.0,0.256361]
[1725779421184,0.55430836,54616.0,54602.0,0.1402]
[1725779421185,0.55430836,54616.0,54606.0,0.256381]
[1725779421404,0.02710178,54617.0,54616.0,0.128167]
[1725779421842,0.0479,54623.0,54618.0,0.128161]
[1725779422057,0.02747509,54620.0,54618.0,0.128161]
[1725779422324,0.0116787,54625.0,54616.0,0.256335]
[1725779422325,0.02871334,54617.0,54616.0,0.897171]
[1725779422560,0.02871334,54617.0,54616.0,1.037371]
[1725779423463,0.02871334,54617.0,54616.0,1.045371]
[1725779424151,0.02871334,54617.0,54616.0,1.059371]
[1725779424384,0.02871334,54617.0,54616.0,1.045371]
[1725779424604,0.02714938,54617.0,54616.0,1.045371]
[1725779424842,0.02714938,54617.0,54616.0,1.037371]
[1725779425073,0.0116787,54625.0,54624.0,0.640742]
[1725779425505,0.0116787,54625.0,54624.0,0.384445]
[1725779425718,0.0116787,54625.0,54624.0,0.128148]
[1725779425719,0.03912604,54625.0,54624.0,0.128148]
[1725779425956,0.0116787,54625.0,54624.0,0.128148]
[1725779426459,0.0116787,54625.0,54624.0,0.384445]
[1725779426893,0.0116787,54625.0,54624.0,0.389445]
[1725779427106,0.0116787,54625.0,54624.0,0.395445]
[1725779427539,0.0116787,54625.0,54624.0,0.139148]
[1725779429701,0.0116787,54625.0,54624.0,0.395445]
[1725779430341,0.04038717,54625.0,54624.0,0.395445]
[1725779432486,0.04038717,54625.0,54624.0,0.139148]
[1725779433991,0.04038717,54625.0,54624.0,0.395445]
[1725779434648,0.04038717,54625.0,54624.0,0.471145]
[1725779436223,0.0116787,54625.0,54624.0,0.471145]
[1725779436434,0.0116787,54625.0,54624.0,0.395445]
[1725779436614,0.0116787,54625.0,54624.0,0.139148]
[1725779436834,0.1398247,54625.0,54624.0,0.011]
[1725779437042,0.0116787,54625.0,54624.0,0.011]
[1725779437685,0.1398247,54625.0,54624.0,0.011]
[1725779437899,0.6524087,54625.0,54624.0,0.011]
[1725779438134,0.6524087,54625.0,54599.0,0.01]
[1725779438135,0.0479,54624.0,54610.0,0.4692]
[1725779438349,0.128175,54613.0,54608.0,0.128185]
[1725779438570,0.12818,54611.0,54604.0,0.1397]
[1725779438792,0.128184,54609.0,54604.0,0.128194]
[1725779439009,0.384538,54611.0,54605.0,0.128192]
[1725779439224,0.384538,54611.0,54603.0,0.128197]
[1725779439225,0.128185,54609.0,54603.0,0.128197]
[1725779439461,0.128188,54608.0,54603.0,0.128197]
[1725779440321,0.256363,54610.0,54605.0,0.012]
[1725779440576,0.640955,54606.0,54605.0,0.012]
[1725779440796,0.128205,54600.0,54595.0,0.128215]
[1725779442147,0.128201,54602.0,54597.0,0.128211]
[1725779442367,0.02871977,54599.0,54597.0,0.00366307]
[1725779442601,0.02871977,54599.0,54598.0,0.128209]
[1725779444230,0.02871977,54599.0,54598.0,0.138209]
[1725779444462,0.02871977,54599.0,54598.0,0.394628]
[1725779444691,0.02971977,54599.0,54598.0,0.405628]
[1725779446301,0.02971977,54599.0,54598.0,0.407256]
[1725779448755,0.05661021,54599.0,54598.0,0.407256]
[1725779448976,0.05661021,54599.0,54598.0,0.484356]
[1725779449678,0.05661021,54599.0,54598.0,0.803475]
[1725779449887,0.02789044,54599.0,54598.0,0.803475]
[1725779459439,0.02789044,54599.0,54598.0,0.547056]
[1725779463850,0.02789044,54599.0,54598.0,0.022628]
[1725779464952,0.09213921,54606.0,54598.0,0.022628]
[1725779465178,0.0479,54608.0,54598.0,0.022628]
[1725779465385,0.128199,54603.0,54599.0,0.128206]
[1725779466007,0.128195,54604.0,54599.0,0.128206]
[1725779466912,0.128195,54604.0,54599.0,0.134206]
[1725779467148,0.384584,54605.0,54598.0,0.001628]
[1725779467362,0.128197,54604.0,54599.0,0.133206]
[1725779467587,0.128197,54604.0,54599.0,0.005]
[1725779467811,0.128197,54604.0,54599.0,0.133205]
[1725779468039,0.128197,54604.0,54599.0,0.128205]
[1725779468504,0.128198,54603.0,54598.0,0.001628]
[1725779468716,0.128198,54603.0,54599.0,0.004]
[1725779469375,0.02872023,54603.0,54599.0,0.132207]
[1725779469822,0.128203,54601.0,54599.0,0.004]
[1725779470056,0.02872023,54603.0,54598.0,0.001628]
[1725779470297,0.711884,54602.0,54598.0,0.001628]
[1725779470536,0.376124,54601.0,54599.0,0.006]
[1725779470756,0.1282,54602.0,54599.0,0.006]
[1725779471004,1.231663,54601.0,54599.0,0.004]
[1725779471231,0.128205,54600.0,54599.0,0.011]
[1725779471864,0.128205,54600.0,54599.0,0.007]
[1725779472076,0.46123731,54600.0,54599.0,0.007]
[1725779473122,0.128207,54599.0,54598.0,0.001628]
[1725779473342,0.128207,54599.0,54583.0,0.5328]
[1725779473343,0.128221,54593.0,54583.0,0.5328]
[1725779473552,1.82867,54599.0,54588.0,0.128231]
[1725779473553,0.023,54599.0,54588.0,0.128231]
[1725779473825,0.128214,54597.0,54590.0,0.1387]
[1725779474022,0.10961684,54603.0,54595.0,0.128214]
[1725779474023,0.15504448,54600.0,54595.0,0.128214]
[1725779474256,0.0287262,54597.0,54595.0,0.128214]
[1725779474485,0.0287262,54597.0,54594.0,0.256437]
[1725779474719,0.0287262,54597.0,54596.0,0.128214]
[1725779475405,0.0287262,54597.0,54596.0,0.448243]
[1725779475619,0.0287262,54597.0,54596.0,0.191814]
[1725779475838,0.0287262,54597.0,54596.0,0.448243]
[1725779476067,0.13745632,54600.0,54598.0,0.128208]
[1725779476283,0.02783948,54600.0,54599.0,0.128207]
[1725779476489,0.02683948,54600.0,54599.0,0.128207]
[1725779476922,0.02683948,54600.0,54599.0,0.127207]
[1725779477127,0.02683948,54600.0,54597.0,0.256423]
[1725779477349,0.02683948,54600.0,54599.0,0.128207]
[1725779477563,0.02683948,54600.0,54599.0,0.131207]
[1725779477817,0.02683948,54600.0,54599.0,0.135207]
[1725779478036,0.13322448,54600.0,54599.0,0.135207]
[1725779478257,0.02683948,54600.0,54599.0,0.466721]
[1725779478473,0.02683948,54600.0,54599.0,0.210307]
[1725779478960,0.02683948,54600.0,54599.0,0.466721]
[1725779479180,0.02683948,54600.0,54599.0,0.462721]
[1725779479404,0.05556248,54600.0,54599.0,0.206307]
[1725779479611,0.05556248,54600.0,54599.0,0.462721]
[1725779480317,0.05556248,54600.0,54599.0,0.782735]
[1725779480537,0.05556248,54600.0,54599.0,0.786735]
[1725779480766,0.05556248,54600.0,54599.0,1.043149]
[1725779481463,0.05556248,54600.0,54599.0,1.040149]
[1725779481694,0.05556248,54600.0,54599.0,1.050149]
[1725779482362,0.05556248,54600.0,54599.0,1.046149]
[1725779482579,0.05556248,54600.0,54599.0,1.049149]
[1725779483013,0.05556248,54600.0,54599.0,1.036149]
[1725779483463,0.05556248,54600.0,54599.0,1.330563]
[1725779483712,0.10961684,54615.0,54614.0,0.128172]
[1725779483923,0.55430836,54616.0,54615.0,0.128169]
[1725779484148,0.10961684,54618.0,54617.0,0.128165]
[1725779484368,0.10961684,54619.0,54618.0,0.128162]
[1725779485024,0.028713,54619.0,54618.0,0.640812]
[1725779485270,0.0263709,54623.0,54622.0,0.523159]
[1725779485513,0.0263709,54623.0,54622.0,0.779465]
[1725779485746,0.1106773,54638.0,54637.0,0.128118]
[1725779485747,0.00106046,54638.0,54637.0,0.128118]
[1725779485958,0.00106046,54638.0,54637.0,0.77929]
[1725779486176,0.10975644,54650.0,54637.0,0.1387]
[1725779486409,0.1115,54649.0,54642.0,0.256211]
[1725779486649,0.128087,54650.0,54644.0,0.128101]
[1725779486872,0.140844,54649.0,54642.0,0.128104]
[1725779487079,0.140844,54649.0,54640.0,0.256221]
[1725779487080,0.140844,54649.0,54640.0,0.12811]
[1725779487286,0.128095,54647.0,54641.0,0.128108]
[1725779487497,0.128091,54649.0,54642.0,0.128106]
[1725779487736,0.04879571,54654.0,54640.0,0.12811]
[1725779487737,0.128095,54647.0,54640.0,0.12811]
[1725779487974,1.065162,54646.0,54640.0,0.12811]
[1725779488183,1.065162,54646.0,54642.0,0.001]
[1725779488393,0.128097,54646.0,54642.0,0.001]
[1725779488608,0.02869977,54645.0,54642.0,0.001]
[1725779489518,0.02869977,54645.0,54642.0,0.002]
[1725779490172,0.128103,54644.0,54637.0,0.203217]
[1725779490387,0.128104,54643.0,54642.0,0.002]
[1725779491046,0.05554644,54645.0,54642.0,0.002]
[1725779491503,0.256143,54657.0,54644.0,0.083]
[1725779491733,0.128078,54655.0,54645.0,0.0655]
[1725779491995,0.322487,54656.0,54648.0,0.128092]
[1725779491996,0.489377,54654.0,54648.0,0.128092]
[1725779492241,0.456994,54653.0,54645.0,0.0655]
[1725779492480,0.278641,54658.0,54645.0,0.0655]
[1725779492481,0.369297,54652.0,54647.0,0.256187]
[1725779492719,0.234813,54652.0,54647.0,0.256187]
[1725779492937,0.128079,54654.0,54649.0,0.128089]
[1725779493151,0.454715,54653.0,54649.0,0.128089]
[1725779493840,0.582796,54653.0,54648.0,0.128091]
[1725779494087,0.657612,54652.0,54647.0,0.004]
[1725779494349,0.023,54652.0,54649.0,0.002]
[1725779494587,0.128088,54650.0,54647.0,0.004]
[1725779494816,0.128088,54650.0,54649.0,0.003]
[1725779495056,0.151088,54650.0,54649.0,0.003]
[1725779495735,0.151088,54650.0,54645.0,0.128097]
[1725779495948,0.537527,54649.0,54645.0,0.128097]
[1725779496619,0.665617,54649.0,54644.0,0.083]
[1725779496866,1.282697,54648.0,54647.0,0.005]
[1725779497083,0.128095,54647.0,54645.0,0.007]
[1725779497296,0.499604,54647.0,54645.0,0.015]
[1725779497732,0.632654,54646.0,54645.0,0.015]
[1725779497943,0.494529,54646.0,54645.0,0.007]
[1725779498194,0.494529,54647.0,54643.0,0.128101]
[1725779498422,0.425911,54646.0,54643.0,0.128101]
[1725779498654,0.425911,54647.0,54645.0,0.008]
[1725779498854,0.640818,54647.0,54645.0,0.008]
[1725779499080,0.652892,54646.0,54644.0,0.008]
[1725779499536,0.652892,54646.0,54645.0,0.011]
[1725779499979,1.060183,54646.0,54645.0,0.011]
[1725779500199,0.803989,54646.0,54645.0,0.011]
[1725779500424,0.454579,54646.0,54645.0,0.012]
[1725779500644,0.37776,54646.0,54645.0,0.012]
[1725779501483,0.633954,54646.0,54645.0,0.012]
[1725779501733,0.633954,54646.0,54645.0,0.022]
[1725779502166,0.37776,54646.0,54645.0,0.012]
[1725779502597,0.633954,54646.0,54645.0,0.023]
[1725779504861,0.37776,54646.0,54645.0,0.023]
[1725779505507,0.128099,54645.0,54641.0,0.128108]
[1725779505737,0.023,54644.0,54640.0,0.25622]
[1725779505958,0.023,54644.0,54642.0,0.128104]
[1725779505959,0.111189,54644.0,54642.0,0.128104]
[1725779506184,0.752787,54648.0,54642.0,0.128104]
[1725779506398,0.266509,54647.0,54643.0,0.128104]
[1725779506629,0.243509,54646.0,54643.0,0.128104]
[1725779506847,0.111373,54645.0,54643.0,0.128104]
[1725779507070,0.26287115,54646.0,54643.0,0.128104]
[1725779507307,0.111373,54645.0,54643.0,0.128104]
[1725779507989,0.111373,54644.0,54643.0,0.128104]
[1725779508213,0.111373,54644.0,54643.0,0.141104]
[1725779508455,0.01917764,54645.0,54643.0,0.141104]
[1725779508677,0.111373,54644.0,54643.0,0.141104]
[1725779508895,0.243693,54646.0,54643.0,0.141104]
[1725779509119,0.363704,54646.0,54643.0,0.013]
[1725779509563,0.001,54644.0,54643.0,0.008]
[1725779509791,0.254786,54644.0,54643.0,0.008]
[1725779509998,1.248316,54644.0,54643.0,0.005]
[1725779510223,1.326316,54644.0,54642.0,0.001628]
[1725779510417,0.023,54643.0,54642.0,0.001628]
[1725779511326,0.023,54645.0,54642.0,0.001628]
[1725779511552,0.343094,54644.0,54643.0,0.004]
[1725779511757,0.276786,54644.0,54643.0,0.014]
[1725779511965,0.253786,54644.0,54643.0,0.014]
[1725779512171,0.253786,54645.0,54643.0,0.014]
[1725779512414,0.93883,54645.0,54643.0,0.004]
[1725779512852,0.93883,54645.0,54642.0,0.005628]
[1725779513076,0.001,54643.0,54642.0,0.011628]
[1725779513310,0.001,54643.0,54642.0,0.007628]
[1725779513517,0.128097,54646.0,54643.0,0.004]
[1725779513744,0.86942,54645.0,54643.0,0.008]
[1725779513977,0.773686,54644.0,54643.0,0.008]
[1725779514210,0.773686,54644.0,54643.0,0.004]
[1725779514461,0.773686,54644.0,54643.0,0.003]
[1725779514666,0.74132,54644.0,54643.0,0.003]
[1725779515140,0.31174325,54649.0,54643.0,0.003]
[1725779515141,0.05556025,54649.0,54643.0,0.653816]
[1725779515377,0.05556025,54649.0,54648.0,0.384277]
[1725779515602,0.02686006,54649.0,54648.0,1.035047]
[1725779516058,0.000814,54657.0,54653.0,0.640402]
[1725779516278,0.000814,54657.0,54653.0,0.778802]
[1725779516471,0.000814,54657.0,54653.0,0.777802]
[1725779516884,0.000814,54657.0,54653.0,0.776802]
[1725779517103,0.000814,54657.0,54653.0,1.032963]
[1725779517347,0.002815,54654.0,54653.0,1.060963]
[1725779518053,0.03004727,54654.0,54653.0,1.060963]
[1725779518283,0.002815,54654.0,54653.0,1.060963]
[1725779522968,0.02802212,54657.0,54653.0,0.1664]
[1725779523205,0.02802212,54657.0,54656.0,0.896514]
[1725779523438,0.02802212,54657.0,54656.0,1.134914]
[1725779524592,0.02802212,54657.0,54656.0,1.146914]
[1725779525477,0.02902212,54657.0,54656.0,1.157914]
[1725779536080,0.02902212,54657.0,54656.0,0.901767]
[1725779537603,0.02902212,54657.0,54656.0,0.023]
[1725779538560,0.15709312,54657.0,54656.0,0.023]
[1725779538790,0.02902212,54657.0,54656.0,0.023]
[1725779540013,0.128085,54652.0,54646.0,0.128096]
[1725779540244,0.342348,54656.0,54646.0,0.256194]
[1725779540467,0.128078,54654.0,54649.0,0.128089]
[1725779540727,0.1031,54653.0,54649.0,0.128089]
[1725779541604,0.1031,54653.0,54649.0,0.130089]
[1725779542086,0.02902212,54657.0,54656.0,0.128073]
[1725779542531,0.02902212,54657.0,54656.0,0.640367]
[1725779542976,0.02902212,54657.0,54656.0,0.38422]
[1725779543459,0.02802212,54657.0,54656.0,0.38422]
[1725779543911,0.02902212,54657.0,54656.0,0.38422]
[1725779545244,0.02902212,54657.0,54656.0,0.128073]
[1725779545697,0.02902212,54657.0,54655.0,0.128075]
[1725779546146,0.03002212,54657.0,54656.0,0.006]
[1725779546381,0.76388712,54657.0,54656.0,0.006]
[1725779546622,0.76188712,54657.0,54654.0,0.001628]
[1725779546849,1.40689,54656.0,54654.0,0.001628]
[1725779547070,1.40689,54656.0,54655.0,0.003]
[1725779547071,1.176824,54656.0,54655.0,0.003]
[1725779547294,0.0153,54656.0,54655.0,0.003]
[1725779547713,1.113124,54656.0,54655.0,0.003]
[1725779547939,0.902823,54656.0,54655.0,0.003]
[1725779548354,0.902823,54656.0,54654.0,0.001628]
[1725779548565,0.56548,54655.0,54654.0,0.001628]
[1725779549225,0.56548,54655.0,54654.0,0.129706]
[1725779549441,0.44975,54655.0,54654.0,0.133706]
[1725779549653,0.44975,54655.0,54654.0,0.129706]
[1725779550140,0.44975,54655.0,54654.0,0.009628]
[1725779550141,0.857978,54655.0,54654.0,0.009628]
[1725779550353,2.041054,54655.0,54654.0,0.009628]
[1725779550559,2.94373296,54655.0,54654.0,0.009628]
[1725779550792,2.99381276,54655.0,54654.0,0.014628]
[1725779551003,2.45679276,54655.0,54654.0,0.014628]
[1725779551232,2.45679276,54655.0,54654.0,0.009628]
[1725779551656,2.45679276,54655.0,54654.0,0.001628]
[1725779551657,2.3462858,54655.0,54654.0,0.001628]
[1725779551876,0.023,54655.0,54654.0,0.001628]
[1725779552083,0.131076,54655.0,54654.0,0.001628]
[1725779552294,0.154076,54655.0,54654.0,0.001628]
[1725779552534,0.023,54656.0,54654.0,0.001628]
[1725779552535,0.128074,54656.0,54654.0,0.001628]
[1725779552756,0.003,54655.0,54654.0,0.001628]
[1725779552991,0.006,54655.0,54654.0,0.001628]
[1725779553215,0.10969054,54661.0,54655.0,0.0777]
[1725779553467,0.00082,54678.0,54677.0,0.128024]
[1725779553672,0.00082,54678.0,54677.0,1.034271]
[1725779553883,0.00082,54678.0,54677.0,1.03792806]
[1725779554336,0.00082,54678.0,54677.0,1.034271]
[1725779554575,0.00082,54678.0,54677.0,1.141271]
[1725779554815,0.00082,54678.0,54677.0,1.39732]
[1725779555263,0.00082,54678.0,54677.0,1.39432]
[1725779555472,0.00082,54678.0,54677.0,1.138271]
[1725779556123,0.00282,54678.0,54677.0,1.162271]
[1725779556579,0.00282,54678.0,54677.0,1.152271]
[1725779565928,0.00282,54678.0,54677.0,1.252271]
[1725779570538,0.00282,54678.0,54677.0,1.253899]
[1725779571794,0.002,54703.0,54679.0,0.256038]
[1725779571985,0.127988,54693.0,54688.0,0.127997]
[1725779572197,0.200434,54692.0,54688.0,0.127997]
[1725779572405,0.328423,54692.0,54688.0,0.127997]
[1725779572613,0.198832,54691.0,54688.0,0.127997]
[1725779572836,0.200434,54692.0,54688.0,0.127997]
[1725779573078,0.116132,54690.0,54688.0,0.127997]
[1725779573297,0.157532,54689.0,54688.0,0.003]
[1725779573523,0.348432,54691.0,54688.0,0.127998]
[1725779573753,0.394515,54692.0,54688.0,0.127998]
[1725779573953,0.338415,54692.0,54688.0,0.132998]
[1725779574166,0.248452,54691.0,54688.0,0.127998]
[1725779574409,0.145205,54690.0,54688.0,0.127998]
[1725779574853,0.00641545,54689.0,54688.0,0.127998]
[1725779575073,0.12254745,54689.0,54688.0,0.133998]
[1725779575515,0.14270979,54689.0,54688.0,0.141998]
[1725779575747,0.14537179,54689.0,54688.0,0.135998]
[1725779575978,0.14537179,54689.0,54688.0,0.142998]
[1725779576434,0.14537179,54689.0,54688.0,0.008]
[1725779576862,0.14637179,54689.0,54688.0,0.016]
[1725779580323,0.54565979,54689.0,54688.0,0.016]
[1725779580757,0.56865979,54689.0,54688.0,0.016]
[1725779582233,0.31266779,54689.0,54688.0,0.016]
[1725779582590,0.29736779,54689.0,54688.0,0.016]
[1725779583209,0.55335979,54689.0,54688.0,0.016]
[1725779583846,0.55417379,54689.0,54688.0,0.016]
[1725779584047,1.31310979,54689.0,54688.0,0.016]
[1725779584661,0.89649679,54689.0,54688.0,0.016]
[1725779585305,1.15248879,54689.0,54688.0,0.016]
[1725779588515,1.14861331,54689.0,54688.0,0.016]
[1725779588722,1.15181254,54689.0,54688.0,0.016]
[1725779589131,1.18048815,54689.0,54688.0,0.016]
[1725779590045,0.08205315,54689.0,54688.0,0.158]
[1725779590291,0.08205315,54689.0,54688.0,0.016]
[1725779590292,0.21004915,54689.0,54688.0,0.016]
[1725779590494,0.59757115,54689.0,54688.0,0.016]
[1725779590678,0.57097115,54689.0,54688.0,0.016]
[1725779590992,0.58543315,54689.0,54688.0,0.016]
[1725779591212,0.0153,54688.0,54678.0,0.142]
[1725779591421,0.256012,54685.0,54678.0,0.142]
[1725779591618,0.128013,54682.0,54678.0,0.142]
[1725779591840,0.646632,54684.0,54678.0,0.0802]
[1725779591841,0.128018,54680.0,54678.0,0.0802]
[1725779591998,0.128018,54680.0,54677.0,0.101628]
[1725779592406,0.256027,54682.0,54677.0,0.101628]
[1725779592407,0.12802,54679.0,54677.0,0.101628]
[1725779592604,0.579193,54678.0,54677.0,0.101628]
[1725779593182,0.217867,54678.0,54677.0,0.105628]
[1725779593395,0.128022,54678.0,54677.0,0.105628]
[1725779593614,0.405339,54678.0,54677.0,0.105628]
[1725779594046,0.376704,54678.0,54677.0,0.105628]
[1725779594462,0.376704,54678.0,54677.0,0.106628]
[1725779594675,0.302654,54678.0,54677.0,0.102628]
[1725779594876,0.303654,54678.0,54677.0,0.101628]
[1725779595103,0.2801972,54678.0,54677.0,0.101628]
[1725779595309,0.2791972,54678.0,54677.0,0.101628]
[1725779595543,0.5352412,54678.0,54677.0,0.101628]
[1725779595757,0.2791972,54678.0,54677.0,0.101628]
[1725779596230,0.2791972,54678.0,54677.0,0.106628]
[1725779596437,0.2791972,54678.0,54677.0,0.101628]
[1725779596848,0.2791972,54678.0,54677.0,0.104628]
[1725779597724,0.276591,54678.0,54677.0,0.104628]
[1725779598696,0.276591,54678.0,54677.0,0.101628]
[1725779599114,0.276591,54678.0,54677.0,0.103628]
[1725779599547,0.13731321,54681.0,54677.0,0.103628]
[1725779599736,0.715313,54680.0,54677.0,0.103628]
[1725779600013,0.715313,54680.0,54677.0,0.106628]
[1725779600215,0.715313,54680.0,54677.0,0.103628]
[1725779600441,0.74399306,54680.0,54677.0,0.103628]
[1725779600711,0.507702,54679.0,54657.0,0.0802]
[1725779600926,0.128071,54657.0,54656.0,0.47092447]
[1725779601175,0.712329,54657.0,54653.0,0.00163]